[Event "Titled Tuesday Blitz May 25 2021"]
[White "Cardoso Cardoso, Jose Gabriel"]
[Black "Martinez Alcantara, Jose Eduardo"]
[WhiteFideId "4430492"]
[BlackFideId "3805662"]
[WhiteElo "2343"]
[BlackElo "2690"]
[Result "0-1"]
[Round "08"]
[TimeControl "180+1"]
[Date "2021.05.25"]
[WhiteClock "0:00:03"]
[BlackClock "0:00:04"]

1. e4 {[%clk 0:03:00]}  e5 {[%clk 0:02:58]} 2. Nf3 {[%clk 0:02:59]}  Nc6 {[%clk 0:02:57]} 3. Bc4 {[%clk 0:02:57]}  Bc5 {[%clk 0:02:52]} 4. c3 {[%clk 0:02:56]}  Nf6 {[%clk 0:02:52]} 5. d4 {[%clk 0:02:53]}  exd4 {[%clk 0:02:51]} 6. cxd4 {[%clk 0:02:53]}  Bb4+ {[%clk 0:02:45]} 7. Bd2 {[%clk 0:02:54]}  Bxd2+ {[%clk 0:02:29]} 8. Nbxd2 {[%clk 0:02:55]}  d5 {[%clk 0:02:29]} 9. exd5 {[%clk 0:02:55]}  Nxd5 {[%clk 0:02:30]} 10. Qb3 {[%clk 0:02:52]}  Nce7 {[%clk 0:02:29]} 11. O-O {[%clk 0:02:43]}  O-O {[%clk 0:02:27]} 12. Ne4 {[%clk 0:02:37]}  c6 {[%clk 0:02:26]} 13. Nc3 {[%clk 0:02:34]}  Nb6 {[%clk 0:02:22]} 14. Be2 {[%clk 0:02:25]}  Be6 {[%clk 0:02:20]} 15. Qc2 {[%clk 0:02:25]}  h6 {[%clk 0:02:17]} 16. Rad1 {[%clk 0:02:21]}  Ned5 {[%clk 0:02:11]} 17. Ne5 {[%clk 0:02:21]}  f6 {[%clk 0:01:51]} 18. Ng6 {[%clk 0:02:05]}  Re8 {[%clk 0:01:51]} 19. a3 {[%clk 0:02:02]}  Bf7 {[%clk 0:01:50]} 20. Bd3 {[%clk 0:02:01]}  Qd6 {[%clk 0:01:32]} 21. Ne4 {[%clk 0:01:54]}  Qc7 {[%clk 0:01:29]} 22. Nc5 {[%clk 0:01:52]}  Nd7 {[%clk 0:01:19]} 23. g3 {[%clk 0:01:32]}  Nxc5 {[%clk 0:01:16]} 24. dxc5 {[%clk 0:01:31]}  a5 {[%clk 0:01:11]} 25. Rfe1 {[%clk 0:01:27]}  Rad8 {[%clk 0:01:06]} 26. Nh4 {[%clk 0:01:22]}  Rxe1+ {[%clk 0:00:55]} 27. Rxe1 {[%clk 0:01:22]}  Re8 {[%clk 0:00:55]} 28. Rxe8+ {[%clk 0:01:09]}  Bxe8 {[%clk 0:00:56]} 29. Nf5 {[%clk 0:01:02]}  Qe5 {[%clk 0:00:54]} 30. Nd6 {[%clk 0:00:49]}  b5 {[%clk 0:00:39]} 31. Qe2 {[%clk 0:00:40]}  Qxe2 {[%clk 0:00:28]} 32. Bxe2 {[%clk 0:00:41]}  Kf8 {[%clk 0:00:29]} 33. Bf3 {[%clk 0:00:31]}  Ne7 {[%clk 0:00:22]} 34. Kf1 {[%clk 0:00:26]}  g5 {[%clk 0:00:22]} 35. Ke2 {[%clk 0:00:23]}  Bg6 {[%clk 0:00:22]} 36. Nb7 {[%clk 0:00:20]}  a4 {[%clk 0:00:18]} 37. Nd8 {[%clk 0:00:20]}  Be8 {[%clk 0:00:18]} 38. Nb7 {[%clk 0:00:19]}  Bd7 {[%clk 0:00:17]} 39. Ke3 {[%clk 0:00:18]}  Ng6 {[%clk 0:00:16]} 40. Be2 {[%clk 0:00:14]}  Ke7 {[%clk 0:00:14]} 41. f4 {[%clk 0:00:14]}  Nf8 {[%clk 0:00:15]} 42. Bf3 {[%clk 0:00:09]}  Ne6 {[%clk 0:00:14]} 43. Be4 {[%clk 0:00:06]}  Be8 {[%clk 0:00:12]} 44. f5 {[%clk 0:00:05]}  Ng7 {[%clk 0:00:04]} 45. g4 {[%clk 0:00:05]}  Kd7 {[%clk 0:00:04]} 46. Nd6 {[%clk 0:00:04]}  Kc7 {[%clk 0:00:04]} 47. h3 {[%clk 0:00:04]}  h5 {[%clk 0:00:04]} 48. Kd4 {[%clk 0:00:03]}  h4 {[%clk 0:00:03]} 49. Kc3 {[%clk 0:00:02]}  Bd7 {[%clk 0:00:03]} 50. Bc2 {[%clk 0:00:02]}  Kd8 {[%clk 0:00:03]} 51. b3 {[%clk 0:00:02]}  axb3 {[%clk 0:00:03]} 52. Bxb3 {[%clk 0:00:03]}  Ke7 {[%clk 0:00:04]} 53. Kb4 {[%clk 0:00:04]}  Kd8 {[%clk 0:00:04]} 54. Ka5 {[%clk 0:00:03]}  Kc7 {[%clk 0:00:04]} 55. Ka6 {[%clk 0:00:04]}  Be8 {[%clk 0:00:02]} 56. Ka5 {[%clk 0:00:03]}  Bd7 {[%clk 0:00:03]} 57. Kb4 {[%clk 0:00:03]}  Ne8 {[%clk 0:00:03]} 58. Nxe8+ {[%clk 0:00:03]}  Bxe8 {[%clk 0:00:04]} 59. Be6 {[%clk 0:00:03]}  Kb7 {[%clk 0:00:03]} 60. a4 {[%clk 0:00:03]}  bxa4 {[%clk 0:00:03]} 61. Kxa4 {[%clk 0:00:04]}  Ka7 {[%clk 0:00:03]} 62. Ka5 {[%clk 0:00:04]}  Kb7 {[%clk 0:00:04]} 63. Bc4 {[%clk 0:00:03]}  Bd7 {[%clk 0:00:04]} 64. Ba6+ {[%clk 0:00:03]}  Kc7 {[%clk 0:00:04]} 65. Bc4 {[%clk 0:00:04]}  Bc8 {[%clk 0:00:05]} 66. Bd3 {[%clk 0:00:03]}  Kb7 {[%clk 0:00:05]} 67. Bc4 {[%clk 0:00:03]}  Ka7 {[%clk 0:00:05]} 68. Bd3 {[%clk 0:00:04]}  Bb7 {[%clk 0:00:05]} 69. Bc4 {[%clk 0:00:04]}  Bc8 {[%clk 0:00:06]} 70. Be6 {[%clk 0:00:04]}  Ba6 {[%clk 0:00:05]} 71. Bd7 {[%clk 0:00:04]}  Bb5 {[%clk 0:00:05]} 72. Be8 {[%clk 0:00:03]}  Kb7 {[%clk 0:00:04]} 73. Bf7 {[%clk 0:00:03]}  Bf1 {[%clk 0:00:04]} 0-1


[Site "https://www.chess.com"]

[Event "Titled Tuesday Blitz May 25 2021"]
[White "Costachi, Mihnea"]
[Black "Ozkan, Ervin"]
[WhiteFideId "1217518"]
[BlackFideId "6306004"]
[WhiteElo "2742"]
[BlackElo "2567"]
[Result "1-0"]
[Round "08"]
[TimeControl "180+1"]
[Date "2021.05.25"]
[WhiteClock "0:01:23"]
[BlackClock "0:00:01"]

1. d4 {[%clk 0:03:00]}  Nf6 {[%clk 0:02:59]} 2. c4 {[%clk 0:03:00]}  g6 {[%clk 0:03:00]} 3. Nc3 {[%clk 0:03:00]}  d5 {[%clk 0:03:00]} 4. Nf3 {[%clk 0:03:00]}  Bg7 {[%clk 0:02:59]} 5. h4 {[%clk 0:03:01]}  h5 {[%clk 0:02:58]} 6. Bf4 {[%clk 0:02:58]}  O-O {[%clk 0:02:56]} 7. e3 {[%clk 0:02:59]}  c5 {[%clk 0:02:51]} 8. Be2 {[%clk 0:02:54]}  cxd4 {[%clk 0:02:35]} 9. Nxd4 {[%clk 0:02:48]}  dxc4 {[%clk 0:02:22]} 10. Bxc4 {[%clk 0:02:46]}  Nbd7 {[%clk 0:02:11]} 11. Ndb5 {[%clk 0:02:39]}  a6 {[%clk 0:01:59]} 12. Bc7 {[%clk 0:02:35]}  Qe8 {[%clk 0:01:59]} 13. Nd4 {[%clk 0:02:30]}  b5 {[%clk 0:01:57]} 14. Bb3 {[%clk 0:02:24]}  Bb7 {[%clk 0:01:55]} 15. O-O {[%clk 0:02:25]}  Nc5 {[%clk 0:01:40]} 16. Bc2 {[%clk 0:02:14]}  e5 {[%clk 0:01:02]} 17. Nf3 {[%clk 0:02:12]}  Ng4 {[%clk 0:01:02]} 18. Qe2 {[%clk 0:02:06]}  b4 {[%clk 0:00:40]} 19. Bd6 {[%clk 0:02:01]}  bxc3 {[%clk 0:00:26]} 20. Bxc5 {[%clk 0:02:00]}  cxb2 {[%clk 0:00:25]} 21. Rab1 {[%clk 0:02:00]}  Qd8 {[%clk 0:00:17]} 22. Bxf8 {[%clk 0:01:56]}  Bxf8 {[%clk 0:00:14]} 23. Rxb2 {[%clk 0:01:55]}  Bxf3 {[%clk 0:00:13]} 24. gxf3 {[%clk 0:01:56]}  Nh6 {[%clk 0:00:10]} 25. Qc4 {[%clk 0:01:51]}  Rc8 {[%clk 0:00:10]} 26. Qe4 {[%clk 0:01:50]}  Nf5 {[%clk 0:00:08]} 27. Bb3 {[%clk 0:01:45]}  Nxh4 {[%clk 0:00:07]} 28. Kh2 {[%clk 0:01:42]}  Bg7 {[%clk 0:00:04]} 29. Rg1 {[%clk 0:01:38]}  Qf6 {[%clk 0:00:04]} 30. Rg3 {[%clk 0:01:39]}  Nf5 {[%clk 0:00:04]} 31. Rg1 {[%clk 0:01:37]}  Nd6 {[%clk 0:00:03]} 32. Qd5 {[%clk 0:01:30]}  Qh4+ {[%clk 0:00:02]} 33. Kg2 {[%clk 0:01:30]}  e4 {[%clk 0:00:02]} 34. Rd2 {[%clk 0:01:23]}  Qg5+ {[%clk 0:00:01]} 35. Qxg5 {[%clk 0:01:23]} 1-0


[Site "https://www.chess.com"]

[Event "Titled Tuesday Blitz May 25 2021"]
[White "Demin, Vladimir"]
[Black "Urazayev, Arystanbek"]
[WhiteFideId "4167457"]
[BlackFideId "13709810"]
[WhiteElo "2573"]
[BlackElo "2733"]
[Result "0-1"]
[Round "08"]
[TimeControl "180+1"]
[Date "2021.05.25"]
[WhiteClock "0:00:30"]
[BlackClock "0:00:13"]

1. e4 {[%clk 0:02:55]}  c5 {[%clk 0:02:59]} 2. Nf3 {[%clk 0:02:55]}  e6 {[%clk 0:03:00]} 3. c3 {[%clk 0:02:55]}  d5 {[%clk 0:03:00]} 4. exd5 {[%clk 0:02:55]}  exd5 {[%clk 0:03:00]} 5. d4 {[%clk 0:02:56]}  Nf6 {[%clk 0:03:01]} 6. Be2 {[%clk 0:02:54]}  Nc6 {[%clk 0:03:01]} 7. O-O {[%clk 0:02:54]}  Be7 {[%clk 0:03:02]} 8. dxc5 {[%clk 0:02:54]}  Bxc5 {[%clk 0:03:03]} 9. Nbd2 {[%clk 0:02:53]}  O-O {[%clk 0:03:03]} 10. Nb3 {[%clk 0:02:51]}  Bb6 {[%clk 0:03:03]} 11. Bg5 {[%clk 0:02:49]}  h6 {[%clk 0:03:03]} 12. Bh4 {[%clk 0:02:45]}  g5 {[%clk 0:03:03]} 13. Bg3 {[%clk 0:02:45]}  Ne4 {[%clk 0:03:04]} 14. Nbd4 {[%clk 0:02:43]}  f5 {[%clk 0:03:01]} 15. Nxc6 {[%clk 0:02:43]}  bxc6 {[%clk 0:03:02]} 16. Be5 {[%clk 0:02:43]}  Qe7 {[%clk 0:02:54]} 17. Bd4 {[%clk 0:02:34]}  c5 {[%clk 0:02:53]} 18. Be3 {[%clk 0:02:34]}  Bb7 {[%clk 0:02:50]} 19. b4 {[%clk 0:02:09]}  Nxc3 {[%clk 0:02:43]} 20. Qc2 {[%clk 0:02:01]}  Nxe2+ {[%clk 0:02:41]} 21. Qxe2 {[%clk 0:02:01]}  cxb4 {[%clk 0:02:36]} 22. Qd3 {[%clk 0:01:56]}  Qe4 {[%clk 0:02:31]} 23. Qb3 {[%clk 0:01:52]}  Qc4 {[%clk 0:02:15]} 24. Bxb6 {[%clk 0:01:50]}  Qxb3 {[%clk 0:02:14]} 25. axb3 {[%clk 0:01:50]}  axb6 {[%clk 0:02:15]} 26. Rad1 {[%clk 0:01:49]}  Ra3 {[%clk 0:02:04]} 27. Nd4 {[%clk 0:01:46]}  Re8 {[%clk 0:02:00]} 28. Rfe1 {[%clk 0:01:42]}  Rxe1+ {[%clk 0:01:59]} 29. Rxe1 {[%clk 0:01:43]}  f4 {[%clk 0:01:55]} 30. h4 {[%clk 0:01:33]}  gxh4 {[%clk 0:01:41]} 31. Re8+ {[%clk 0:01:23]}  Kf7 {[%clk 0:01:37]} 32. Rb8 {[%clk 0:01:23]}  Ra7 {[%clk 0:00:54]} 33. Kh2 {[%clk 0:01:13]}  Kf6 {[%clk 0:00:49]} 34. Nb5 {[%clk 0:01:08]}  Ra5 {[%clk 0:00:49]} 35. Nd4 {[%clk 0:01:06]}  Ra7 {[%clk 0:00:31]} 36. Nb5 {[%clk 0:01:06]}  Ra5 {[%clk 0:00:23]} 37. Nd4 {[%clk 0:01:06]}  Ba8 {[%clk 0:00:20]} 38. Rxb6+ {[%clk 0:01:05]}  Ke5 {[%clk 0:00:19]} 39. Nf3+ {[%clk 0:01:05]}  Ke4 {[%clk 0:00:17]} 40. Rxb4+ {[%clk 0:01:03]}  Kd3 {[%clk 0:00:18]} 41. Rxf4 {[%clk 0:01:03]}  Rb5 {[%clk 0:00:18]} 42. b4 {[%clk 0:01:02]}  Kc3 {[%clk 0:00:15]} 43. Rxh4 {[%clk 0:00:53]}  Rxb4 {[%clk 0:00:15]} 44. Rxh6 {[%clk 0:00:54]}  d4 {[%clk 0:00:13]} 45. Rh8 {[%clk 0:00:52]}  Bxf3 {[%clk 0:00:13]} 46. gxf3 {[%clk 0:00:52]}  d3 {[%clk 0:00:13]} 47. Rc8+ {[%clk 0:00:43]}  Rc4 {[%clk 0:00:13]} 48. Rd8 {[%clk 0:00:41]}  d2 {[%clk 0:00:13]} 49. Rxd2 {[%clk 0:00:30]}  Kxd2 {[%clk 0:00:14]} 50. Kg3 {[%clk 0:00:30]}  Kd3 {[%clk 0:00:14]} 51. f4 {[%clk 0:00:31]}  Ke4 {[%clk 0:00:13]} 52. Kg4 {[%clk 0:00:31]}  Rc1 {[%clk 0:00:13]} 53. f3+ {[%clk 0:00:31]}  Kd5 {[%clk 0:00:14]} 54. Kg5 {[%clk 0:00:30]}  Ke6 {[%clk 0:00:13]} 0-1


[Site "https://www.chess.com"]

[Event "Titled Tuesday Blitz May 25 2021"]
[White "Dowgird, Filip"]
[Black "Reprintsev, Alexander"]
[WhiteFideId "1121235"]
[BlackFideId "14100541"]
[WhiteElo "2209"]
[BlackElo "2177"]
[Result "1-0"]
[Round "08"]
[TimeControl "180+1"]
[Date "2021.05.25"]
[WhiteClock "0:00:36"]
[BlackClock "0:01:36"]

1. d4 {[%clk 0:03:00]}  d5 {[%clk 0:02:59]} 2. Bf4 {[%clk 0:03:00]}  Nf6 {[%clk 0:02:58]} 3. e3 {[%clk 0:03:01]}  c5 {[%clk 0:02:58]} 4. c3 {[%clk 0:03:01]}  Qb6 {[%clk 0:02:58]} 5. Qb3 {[%clk 0:03:00]}  e6 {[%clk 0:02:58]} 6. Nd2 {[%clk 0:02:58]}  Bd7 {[%clk 0:02:58]} 7. Ngf3 {[%clk 0:02:48]}  Bc6 {[%clk 0:02:58]} 8. h3 {[%clk 0:02:42]}  Nbd7 {[%clk 0:02:58]} 9. Be2 {[%clk 0:02:32]}  Be7 {[%clk 0:02:58]} 10. O-O {[%clk 0:02:33]}  O-O {[%clk 0:02:58]} 11. Rfe1 {[%clk 0:02:33]}  Rfc8 {[%clk 0:02:58]} 12. Ne5 {[%clk 0:02:23]}  Nxe5 {[%clk 0:02:57]} 13. Bxe5 {[%clk 0:02:23]}  Be8 {[%clk 0:02:56]} 14. Bf3 {[%clk 0:02:18]}  Nd7 {[%clk 0:02:49]} 15. Bg3 {[%clk 0:02:17]}  f5 {[%clk 0:02:49]} 16. Be2 {[%clk 0:02:06]}  c4 {[%clk 0:02:49]} 17. Qc2 {[%clk 0:02:06]}  Bd6 {[%clk 0:02:40]} 18. Bxd6 {[%clk 0:01:46]}  Qxd6 {[%clk 0:02:40]} 19. f4 {[%clk 0:01:45]}  b5 {[%clk 0:02:38]} 20. a3 {[%clk 0:01:42]}  a5 {[%clk 0:02:38]} 21. Nf3 {[%clk 0:01:40]}  Rcb8 {[%clk 0:02:37]} 22. g4 {[%clk 0:01:37]}  fxg4 {[%clk 0:02:36]} 23. hxg4 {[%clk 0:01:36]}  Bg6 {[%clk 0:02:36]} 24. Qd2 {[%clk 0:01:36]}  Nf6 {[%clk 0:02:35]} 25. Ne5 {[%clk 0:01:30]}  Ne4 {[%clk 0:02:35]} 26. Qc2 {[%clk 0:01:20]}  b4 {[%clk 0:02:21]} 27. axb4 {[%clk 0:01:19]}  axb4 {[%clk 0:02:22]} 28. Nxg6 {[%clk 0:01:10]}  hxg6 {[%clk 0:02:17]} 29. Bxc4 {[%clk 0:01:08]}  Nxc3 {[%clk 0:02:09]} 30. Bd3 {[%clk 0:01:05]}  Na2 {[%clk 0:01:54]} 31. Bxg6 {[%clk 0:01:01]}  b3 {[%clk 0:01:54]} 32. Qh2 {[%clk 0:01:01]}  Qb4 {[%clk 0:01:41]} 33. Qh7+ {[%clk 0:00:57]}  Kf8 {[%clk 0:01:41]} 34. Qh8+ {[%clk 0:00:57]}  Ke7 {[%clk 0:01:42]} 35. Qxg7+ {[%clk 0:00:58]}  Kd6 {[%clk 0:01:42]} 36. Qe5+ {[%clk 0:00:56]}  Kd7 {[%clk 0:01:42]} 37. f5 {[%clk 0:00:43]}  exf5 {[%clk 0:01:38]} 38. Bxf5+ {[%clk 0:00:41]}  Kc6 {[%clk 0:01:37]} 39. Qe6+ {[%clk 0:00:37]}  Qd6 {[%clk 0:01:36]} 40. Rac1+ {[%clk 0:00:36]} 1-0


[Site "https://www.chess.com"]

[Event "Titled Tuesday Blitz May 25 2021"]
[White "Erigaisi Arjun"]
[Black "Leitao, Rafael"]
[WhiteFideId "35009192"]
[BlackFideId "2101246"]
[WhiteElo "2609"]
[BlackElo "2609"]
[Result "0-1"]
[Round "08"]
[TimeControl "180+1"]
[Date "2021.05.25"]
[WhiteClock "0:01:08"]
[BlackClock "0:00:56"]

1. Nf3 {[%clk 0:03:00]}  Nf6 {[%clk 0:02:56]} 2. c4 {[%clk 0:03:01]}  g6 {[%clk 0:02:56]} 3. Nc3 {[%clk 0:03:01]}  Bg7 {[%clk 0:02:57]} 4. e4 {[%clk 0:03:01]}  d6 {[%clk 0:02:57]} 5. d4 {[%clk 0:03:02]}  O-O {[%clk 0:02:57]} 6. Be2 {[%clk 0:03:02]}  e5 {[%clk 0:02:57]} 7. d5 {[%clk 0:03:03]}  a5 {[%clk 0:02:56]} 8. Be3 {[%clk 0:03:04]}  Ng4 {[%clk 0:02:55]} 9. Bg5 {[%clk 0:03:04]}  f6 {[%clk 0:02:55]} 10. Bh4 {[%clk 0:03:05]}  Nh6 {[%clk 0:02:53]} 11. Nd2 {[%clk 0:03:05]}  Nf7 {[%clk 0:02:50]} 12. Qc2 {[%clk 0:03:02]}  Na6 {[%clk 0:02:50]} 13. a3 {[%clk 0:03:02]}  Qe8 {[%clk 0:02:46]} 14. O-O {[%clk 0:03:00]}  f5 {[%clk 0:02:44]} 15. f3 {[%clk 0:03:00]}  Bh6 {[%clk 0:02:44]} 16. Bf2 {[%clk 0:03:00]}  Bd7 {[%clk 0:02:41]} 17. b3 {[%clk 0:02:57]}  Qe7 {[%clk 0:02:30]} 18. Rab1 {[%clk 0:02:53]}  Bf4 {[%clk 0:02:25]} 19. b4 {[%clk 0:02:40]}  axb4 {[%clk 0:02:23]} 20. axb4 {[%clk 0:02:41]}  Qg5 {[%clk 0:02:23]} 21. Rfd1 {[%clk 0:02:39]}  Be3 {[%clk 0:02:20]} 22. Nf1 {[%clk 0:02:38]}  Bxf2+ {[%clk 0:02:18]} 23. Kxf2 {[%clk 0:02:39]}  Qh4+ {[%clk 0:02:08]} 24. Kg1 {[%clk 0:02:37]}  Ng5 {[%clk 0:02:09]} 25. c5 {[%clk 0:02:32]}  fxe4 {[%clk 0:02:06]} 26. Bxa6 {[%clk 0:02:15]}  exf3 {[%clk 0:01:59]} 27. Bxb7 {[%clk 0:02:09]}  fxg2 {[%clk 0:01:53]} 28. Qxg2 {[%clk 0:02:09]}  Nh3+ {[%clk 0:01:47]} 29. Kh1 {[%clk 0:02:09]}  Nf2+ {[%clk 0:01:42]} 30. Kg1 {[%clk 0:02:09]}  Ra3 {[%clk 0:01:29]} 31. Rdc1 {[%clk 0:01:57]}  Nh3+ {[%clk 0:01:04]} 32. Kh1 {[%clk 0:01:55]}  Bg4 {[%clk 0:00:59]} 33. Nd2 {[%clk 0:01:08]}  Rf2 {[%clk 0:00:56]} 0-1


[Site "https://www.chess.com"]

[Event "Titled Tuesday Blitz May 25 2021"]
[White "Eynullayev, Atilla"]
[Black "Solon, Nathan"]
[WhiteFideId "13413570"]
[BlackFideId "2017229"]
[WhiteElo "2520"]
[BlackElo "2633"]
[Result "1-0"]
[Round "08"]
[TimeControl "180+1"]
[Date "2021.05.25"]
[WhiteClock "0:01:50"]
[BlackClock "0:01:41"]

1. e4 {[%clk 0:03:00]}  c5 {[%clk 0:02:59]} 2. Nf3 {[%clk 0:03:00]}  d6 {[%clk 0:03:00]} 3. d4 {[%clk 0:03:00]}  cxd4 {[%clk 0:03:01]} 4. Nxd4 {[%clk 0:03:01]}  Nf6 {[%clk 0:03:01]} 5. Nc3 {[%clk 0:03:01]}  a6 {[%clk 0:03:01]} 6. Be2 {[%clk 0:03:00]}  e5 {[%clk 0:03:01]} 7. Nb3 {[%clk 0:03:01]}  Be7 {[%clk 0:03:01]} 8. O-O {[%clk 0:03:00]}  O-O {[%clk 0:03:01]} 9. Qd3 {[%clk 0:03:00]}  b5 {[%clk 0:02:39]} 10. a4 {[%clk 0:02:47]}  b4 {[%clk 0:02:28]} 11. Nd5 {[%clk 0:02:46]}  Nxd5 {[%clk 0:02:14]} 12. Qxd5 {[%clk 0:02:44]}  Ra7 {[%clk 0:02:14]} 13. Be3 {[%clk 0:02:43]}  Rd7 {[%clk 0:02:14]} 14. Bg4 {[%clk 0:01:59]}  Bb7 {[%clk 0:02:13]} 15. Qd3 {[%clk 0:01:57]}  d5 {[%clk 0:01:49]} 16. Bxd7 {[%clk 0:01:56]}  dxe4 {[%clk 0:01:49]} 17. Qd2 {[%clk 0:01:50]}  Qxd7 {[%clk 0:01:42]} 18. Qxd7 {[%clk 0:01:50]}  Nxd7 {[%clk 0:01:43]} 19. Rfd1 {[%clk 0:01:50]}  Nf6 {[%clk 0:01:41]} 20. Bc5 {[%clk 0:01:50]} 1-0


[Site "https://www.chess.com"]

[Event "Titled Tuesday Blitz May 25 2021"]
[White "Fernandez, Daniel Howard"]
[Black "Jobava, Baadur"]
[WhiteFideId "5801605"]
[BlackFideId "13601520"]
[WhiteElo "2468"]
[BlackElo "2748"]
[Result "1-0"]
[Round "08"]
[TimeControl "180+1"]
[Date "2021.05.25"]
[WhiteClock "0:01:48"]
[BlackClock "0:00:16"]

1. e4 {[%clk 0:02:58]}  e5 {[%clk 0:02:56]} 2. Nf3 {[%clk 0:02:58]}  Nf6 {[%clk 0:02:56]} 3. Nc3 {[%clk 0:02:54]}  d6 {[%clk 0:02:56]} 4. d4 {[%clk 0:02:52]}  Nbd7 {[%clk 0:02:57]} 5. Rg1 {[%clk 0:02:51]}  g6 {[%clk 0:02:52]} 6. g4 {[%clk 0:02:51]}  Bg7 {[%clk 0:02:53]} 7. Be2 {[%clk 0:02:49]}  O-O {[%clk 0:02:50]} 8. Be3 {[%clk 0:02:48]}  c6 {[%clk 0:02:46]} 9. g5 {[%clk 0:02:48]}  Nh5 {[%clk 0:02:45]} 10. Qd2 {[%clk 0:02:48]}  b5 {[%clk 0:02:44]} 11. a3 {[%clk 0:02:45]}  a5 {[%clk 0:02:44]} 12. d5 {[%clk 0:02:39]}  cxd5 {[%clk 0:02:36]} 13. Nxd5 {[%clk 0:02:37]}  Nc5 {[%clk 0:02:30]} 14. Bxc5 {[%clk 0:02:30]}  dxc5 {[%clk 0:02:31]} 15. Bxb5 {[%clk 0:02:30]}  Rb8 {[%clk 0:02:27]} 16. a4 {[%clk 0:02:30]}  Nf4 {[%clk 0:02:17]} 17. O-O-O {[%clk 0:02:30]}  Ne6 {[%clk 0:01:59]} 18. h4 {[%clk 0:02:24]}  Nd4 {[%clk 0:01:56]} 19. Nxd4 {[%clk 0:02:18]}  exd4 {[%clk 0:01:56]} 20. h5 {[%clk 0:02:18]}  Be6 {[%clk 0:01:53]} 21. Bc4 {[%clk 0:02:18]}  Qd7 {[%clk 0:01:28]} 22. b3 {[%clk 0:02:17]}  Qd8 {[%clk 0:01:11]} 23. f4 {[%clk 0:02:14]}  Re8 {[%clk 0:01:08]} 24. f5 {[%clk 0:02:12]}  Bxd5 {[%clk 0:00:41]} 25. Bxd5 {[%clk 0:02:12]}  Qd6 {[%clk 0:00:32]} 26. hxg6 {[%clk 0:01:58]}  hxg6 {[%clk 0:00:33]} 27. Rdf1 {[%clk 0:01:58]}  c4 {[%clk 0:00:31]} 28. fxg6 {[%clk 0:01:58]}  Qa3+ {[%clk 0:00:20]} 29. Kd1 {[%clk 0:01:58]}  d3 {[%clk 0:00:18]} 30. Bxf7+ {[%clk 0:01:55]}  Kf8 {[%clk 0:00:19]} 31. Bxc4+ {[%clk 0:01:56]}  Ke7 {[%clk 0:00:18]} 32. Rf7+ {[%clk 0:01:56]}  Kd6 {[%clk 0:00:18]} 33. Qxd3+ {[%clk 0:01:57]}  Kc5 {[%clk 0:00:17]} 34. Qd5+ {[%clk 0:01:48]}  Kb4 {[%clk 0:00:16]} 35. Qd6+ {[%clk 0:01:47]}  Kc3 {[%clk 0:00:16]} 36. Qxa3 {[%clk 0:01:48]} 1-0


[Site "https://www.chess.com"]

[Event "Titled Tuesday Blitz May 25 2021"]
[White "Filali, Razzouki Marouane"]
[Black "Maiorov, Nikita"]
[WhiteFideId "9003720"]
[BlackFideId "13501720"]
[WhiteElo "2073"]
[BlackElo "2440"]
[Result "1-0"]
[Round "08"]
[TimeControl "180+1"]
[Date "2021.05.25"]
[WhiteClock "0:01:00"]
[BlackClock "0:00:02"]

1. e4 {[%clk 0:03:00]}  e5 {[%clk 0:02:58]} 2. Nf3 {[%clk 0:03:01]}  Nc6 {[%clk 0:02:57]} 3. Bc4 {[%clk 0:03:01]}  Bc5 {[%clk 0:02:30]} 4. c3 {[%clk 0:03:01]}  Nf6 {[%clk 0:02:29]} 5. d4 {[%clk 0:03:02]}  exd4 {[%clk 0:02:28]} 6. cxd4 {[%clk 0:03:03]}  Bb4+ {[%clk 0:02:28]} 7. Nc3 {[%clk 0:03:04]}  Nxe4 {[%clk 0:02:27]} 8. O-O {[%clk 0:03:04]}  Bxc3 {[%clk 0:02:26]} 9. d5 {[%clk 0:03:04]}  Bf6 {[%clk 0:02:26]} 10. Re1 {[%clk 0:03:05]}  Ne7 {[%clk 0:02:25]} 11. Rxe4 {[%clk 0:03:05]}  d6 {[%clk 0:02:25]} 12. Bg5 {[%clk 0:03:06]}  Bxg5 {[%clk 0:02:25]} 13. Nxg5 {[%clk 0:03:07]}  h6 {[%clk 0:02:25]} 14. Qh5 {[%clk 0:03:07]}  O-O {[%clk 0:02:20]} 15. Rae1 {[%clk 0:03:06]}  Ng6 {[%clk 0:01:29]} 16. Ne6 {[%clk 0:03:06]}  fxe6 {[%clk 0:01:17]} 17. Qxg6 {[%clk 0:03:06]}  e5 {[%clk 0:01:17]} 18. Rxe5 {[%clk 0:03:06]}  Qh4 {[%clk 0:01:00]} 19. Re7 {[%clk 0:03:03]}  Qxf2+ {[%clk 0:00:51]} 20. Kh1 {[%clk 0:03:03]}  Qf6 {[%clk 0:00:49]} 21. Qxf6 {[%clk 0:02:59]}  Rxf6 {[%clk 0:00:49]} 22. Rxc7 {[%clk 0:02:53]}  b5 {[%clk 0:00:24]} 23. Bxb5 {[%clk 0:02:51]}  Bg4 {[%clk 0:00:15]} 24. Ree7 {[%clk 0:02:44]}  Rg6 {[%clk 0:00:14]} 25. h3 {[%clk 0:02:41]}  Bf5 {[%clk 0:00:13]} 26. Be2 {[%clk 0:02:38]}  Rb8 {[%clk 0:00:12]} 27. g4 {[%clk 0:02:22]}  Bb1 {[%clk 0:00:10]} 28. b3 {[%clk 0:02:22]}  a5 {[%clk 0:00:07]} 29. Ra7 {[%clk 0:02:05]}  Rc8 {[%clk 0:00:06]} 30. Kg2 {[%clk 0:01:46]}  h5 {[%clk 0:00:05]} 31. Kg3 {[%clk 0:01:37]}  Rc3+ {[%clk 0:00:04]} 32. Kh4 {[%clk 0:01:32]}  hxg4 {[%clk 0:00:05]} 33. Bxg4 {[%clk 0:01:31]}  Rh6+ {[%clk 0:00:05]} 34. Kg5 {[%clk 0:01:30]}  Rg6+ {[%clk 0:00:05]} 35. Kf4 {[%clk 0:01:29]}  Rf6+ {[%clk 0:00:06]} 36. Kg5 {[%clk 0:01:17]}  Rg6+ {[%clk 0:00:06]} 37. Kh4 {[%clk 0:01:15]}  Kh7 {[%clk 0:00:06]} 38. Bh5 {[%clk 0:01:16]}  Rgg3 {[%clk 0:00:04]} 39. Bg4 {[%clk 0:01:14]}  Kh6 {[%clk 0:00:04]} 40. Rxg7 {[%clk 0:01:07]}  Bg6 {[%clk 0:00:03]} 41. Rge7 {[%clk 0:01:03]}  Rg1 {[%clk 0:00:03]} 42. Re6 {[%clk 0:01:01]}  Rg2 {[%clk 0:00:02]} 43. Rf7 {[%clk 0:01:00]} 1-0


[Site "https://www.chess.com"]